bitfinex-derivatives/quotes_SOLF0:USTF0_20241217
["timestamp","ask_amount","ask_price","bid_price","bid_amount"]
[1734454935518,2.2023,227.03,226.95,5.29002688]
[1734454935825,3.0,227.05,226.92,10.26205625]
[1734454936028,1.4546,227.04,226.92,10.26205625]
[1734454936220,1.4546,227.04,226.92,15.615123]
[1734454936522,3.0,227.03,226.92,15.615123]
[1734454936819,3.0,227.03,226.92,5.35306675]
[1734454937925,2.2026,226.99,226.89,10.26205625]
[1734454938227,2.2026,226.99,226.95,2.203]
[1734454938820,2.2027,226.98,226.94,2.2031]
[1734454939027,2.98,226.97,226.94,2.2031]
[1734454939627,5.1829,226.97,226.92,2.2032]
[1734454939823,2.98,226.97,226.92,2.2032]
[1734454940228,2.98,226.97,226.9,2.2034]
[1734454940631,2.98,226.97,226.86,10.26205625]
[1734454940824,2.2033,226.93,226.87,2.2036]
[1734454941231,2.2033,226.93,226.86,10.26205625]
[1734454941530,2.2033,226.93,226.88,2.2036]
[1734454941731,4.4317,226.97,226.86,10.26205625]
[1734454942830,2.2029,226.96,226.92,2.2032]
[1734454943328,2.98,226.97,226.89,10.26205625]
[1734454943526,2.98,226.97,226.95,2.2029]
[1734454943725,2.98,226.97,226.89,10.26205625]
[1734454943927,2.98,226.97,226.93,2.2031]
[1734454944224,2.98,226.97,226.89,10.26205625]
[1734454944433,2.2025,227.0,226.96,2.2029]
[1734454944627,2.98,226.99,226.96,2.2029]
[1734454944823,2.98,226.99,226.89,10.26205625]
[1734454945332,2.98,226.99,226.86,10.26205625]
[1734454945832,2.2029,226.97,226.92,2.2032]
[1734454946032,2.2029,226.97,226.86,10.26205625]
[1734454946429,2.2029,226.97,226.93,2.2031]
[1734454946629,2.2029,226.96,226.93,2.2031]
[1734454946934,2.2029,226.96,226.86,10.26205625]
[1734454947133,2.2031,226.94,226.89,2.2035]
[1734454947434,2.98,226.93,226.84,11.43319384]
[1734454948237,2.2035,226.9,226.86,2.2037]
[1734454948429,2.98,226.93,226.84,6.10280406]
[1734454948627,2.2035,226.9,226.86,2.2038]
[1734454948929,2.98,226.93,226.84,6.10280406]
[1734454948930,10.26205625,226.92,226.84,6.10280406]
[1734454949130,10.26205625,226.92,226.8,15.55382385]
[1734454949330,2.98,226.93,226.83,10.26205625]
[1734454949724,2.98,226.93,226.8,5.2917676]
[1734454949725,10.26205625,227.01,226.89,10.26205625]
[1734454949929,2.98,227.0,226.89,10.26205625]
[1734454950133,2.98,226.99,226.89,10.26205625]
[1734454951230,2.98,226.99,226.83,6.10280406]
[1734454951435,2.98,226.99,226.84,10.26205625]
[1734454951635,2.2029,226.96,226.88,2.2036]
[1734454951930,2.98,226.99,226.84,10.26205625]
[1734454952325,2.203,226.95,226.91,2.2033]
[1734454952929,2.203,226.96,226.91,2.2033]
[1734454953333,10.26205625,226.95,226.81,47.56938486]
[1734454953735,10.26205625,226.95,226.81,16.36486031]
[1734454953931,10.26205625,226.95,226.81,10.26205625]
[1734454954126,2.2034,226.91,226.81,10.26205625]
[1734454954326,2.98,226.9,226.81,10.26205625]
[1734454954732,2.98,226.9,226.88,2.2036]
[1734454955735,2.98,226.9,226.89,2.2036]
[1734454957935,2.98,226.93,226.87,10.26205625]
[1734454958132,2.98,226.94,226.87,10.26205625]
[1734454958342,2.98,226.95,226.87,10.26205625]
[1734454959030,2.98,226.95,226.86,1.5122]
[1734454960038,2.98,226.94,226.86,1.5122]
[1734454961940,2.98,226.94,226.92,2.2032]
[1734454964536,2.2028,226.97,226.92,2.2032]
[1734454964738,2.98,226.96,226.92,2.2032]
[1734454965138,2.98,226.96,226.86,1.5122]
[1734454965339,10.26205625,226.95,226.83,6.10280406]
[1734454965537,10.26205625,226.95,226.8,31.27128386]
[1734454965840,10.26205625,226.92,226.8,6.10280406]
[1734454966037,10.26205625,226.92,226.79,6.10280406]
[1734454966235,10.26205625,226.92,226.78,7.59460406]
[1734454966441,10.26205625,226.92,226.79,10.85782291]
[1734454966841,10.26205625,226.92,226.79,4.75501885]
[1734454967033,10.26205625,226.92,226.78,19.8002122]
[1734454967231,10.26205625,226.92,226.79,5.27858287]
[1734454967633,2.98,226.96,226.82,10.26205625]
[1734454967838,2.98,226.96,226.79,5.27858287]
[1734454967839,2.98,226.96,226.86,10.26205625]
[1734454968039,2.98,226.96,226.83,28.57046845]
[1734454968235,2.98,226.96,226.84,10.85432802]
[1734454968433,2.98,226.96,226.83,16.36486031]
[1734454968641,2.98,226.96,226.85,4.75707762]
[1734454969241,2.98,226.96,226.85,10.85988168]
[1734454969943,2.98,226.96,226.86,10.26205625]
[1734454972343,2.98,226.96,226.87,1.5518]
[1734454973943,2.98,226.95,226.89,10.26205625]
[1734454974342,4.97257,227.02,226.89,10.26205625]
[1734454974343,3.47707,227.02,226.89,10.26205625]
[1734454974541,2.98,227.01,226.89,10.26205625]
[1734454975644,2.98,227.0,226.92,10.26205625]
[1734454975838,2.98,227.0,226.93,1.511]
[1734454976251,2.98,227.0,226.91,10.26205625]
[1734454977045,2.98,227.0,226.92,5.26398626]
[1734454978951,0.44457,227.02,226.92,5.26398626]
[1734454979152,2.98,227.01,226.92,5.26398626]
[1734454979750,2.98,227.01,226.93,10.85075906]
[1734454979945,3.42457,227.02,226.94,4.747955]
[1734454980143,3.42457,227.02,226.94,10.26205625]
[1734454981047,3.42457,227.02,226.94,16.36486031]
[1734454981648,3.42457,227.02,226.94,10.26205625]
[1734454981953,0.44457,227.02,226.95,10.84664805]
[1734454982154,3.42457,227.02,226.96,29.81555061]
[1734454982349,3.42457,227.02,226.96,6.10280406]
[1734454982553,0.44457,227.02,226.97,10.26205625]
[1734454982752,0.44457,227.02,226.97,34.67327251]
[1734454983253,0.44457,227.02,226.98,6.10280406]
[1734454983454,2.98,227.04,226.97,34.67327251]
[1734454983863,2.98,227.04,226.98,10.83780748]
[1734454984062,2.98,227.04,226.98,6.10280406]
[1734454984467,2.98,227.04,226.97,28.57046845]
[1734454985067,2.98,227.04,226.97,16.36486031]
[1734454985864,2.98,227.08,227.0,10.26205625]
[1734454986764,2.98,227.08,226.97,16.36486031]
[1734454988058,2.98,227.08,227.0,10.26205625]
[1734454988668,10.26205625,227.12,227.0,10.26205625]
[1734454988863,2.98,227.11,227.0,10.26205625]
[1734454990569,2.98,227.11,226.97,10.26205625]
[1734454990972,10.26205625,227.09,226.97,10.26205625]
[1734454991164,10.26205625,227.09,226.94,16.36486031]
[1734454991368,10.26205625,227.09,226.97,10.26205625]
[1734454991569,2.98,227.11,226.97,10.26205625]
[1734454993568,2.98,227.11,226.92,5.26398626]
[1734454993569,10.26205625,227.06,226.92,5.26398626]
[1734454993769,4.4491,227.05,226.92,5.26398626]
[1734454994167,2.9086,227.04,226.94,10.26205625]
[1734454996880,10.26205625,227.03,226.91,6.10280406]
[1734454998077,10.26205625,227.03,226.89,5.2153289]
[1734454998576,2.2025,227.0,226.89,5.2153289]
[1734454998873,2.96,226.99,226.89,5.2153289]
[1734454999079,2.96,226.99,226.95,2.2029]
[1734454999275,2.96,226.99,226.89,5.2153289]
[1734454999476,5.1626,226.99,226.88,10.26205625]
[1734454999676,2.96,226.99,226.96,2.2029]
[1734454999871,2.96,226.99,226.88,15.50997723]
[1734455000277,10.26205625,226.96,226.81,1.4607]
[1734455000478,10.26205625,226.96,226.81,10.26205625]
[1734455000677,4.4506,226.95,226.81,10.26205625]
[1734455000874,2.2034,226.91,226.81,10.26205625]
[1734455001078,2.96,226.9,226.81,10.26205625]
[1734455001281,2.96,226.9,226.78,10.26205625]
[1734455001780,2.96,226.9,226.86,2.2037]
[1734455002379,2.96,226.9,226.81,10.26205625]
[1734455003181,2.96,226.9,226.89,2.2036]
[1734455004675,4.4506,226.95,226.89,2.2036]
[1734455004881,50.4,226.98,226.87,10.26205625]
[1734455005177,2.96,226.97,226.9,10.26205625]
[1734455005381,2.96,226.97,226.96,2.2029]
[1734455005774,50.4,226.98,226.9,10.26205625]
[1734455006088,2.96,226.97,226.96,2.2029]
[1734455006378,13.21525625,227.03,226.9,10.26205625]
[1734455006685,2.96,227.02,226.9,10.26205625]
[1734455007280,2.9532,227.03,226.9,10.26205625]
[1734455007481,2.96,227.02,226.9,10.26205625]
[1734455008083,2.96,227.02,227.01,2.2024]
[1734455008787,10.26205625,227.06,227.02,2.2023]
[1734455008988,2.96,227.05,226.93,10.26205625]
[1734455009185,10.26205625,227.06,227.02,2.2023]
[1734455009186,2.96,227.04,227.02,2.2023]
[1734455010077,2.96,227.04,226.94,10.26205625]
[1734455010078,2.96,227.04,227.03,2.2022]
[1734455010278,2.96,227.04,226.94,10.26205625]
[1734455010483,2.96,227.04,227.03,2.2022]
[1734455011081,2.96,227.06,226.97,10.26205625]
[1734455011579,2.96,227.06,227.05,2.202]
[1734455013788,2.96,227.08,227.0,10.26205625]
[1734455015183,2.96,227.08,227.07,2.2018]
[1734455015384,2.96,227.1,227.03,10.26205625]
[1734455015786,2.96,227.1,227.09,2.2016]
[1734455021292,10.26205625,227.19,227.12,2.2013]
[1734455021687,2.96,227.18,227.12,2.2013]
[1734455021894,2.96,227.18,227.07,10.26205625]
[1734455022192,2.96,227.17,227.07,10.26205625]
[1734455022396,2.2006,227.2,227.14,2.2011]
[1734455022691,2.2006,227.2,227.07,10.26205625]
[1734455022692,2.96,227.19,227.07,10.26205625]
[1734455022995,2.2006,227.2,227.07,10.26205625]
[1734455023286,2.96,227.19,227.16,2.2009]
[1734455023487,2.96,227.18,227.07,10.26205625]
[1734455023888,2.96,227.18,227.1,2.2015]
[1734455024189,2.96,227.18,227.07,10.26205625]
[1734455024891,2.96,227.18,227.17,2.2008]
[1734455025092,14.60118625,227.22,227.17,2.2008]
[1734455025396,12.40078625,227.22,227.19,2.2006]
[1734455025591,0.72253,227.22,227.13,10.26205625]
[1734455025795,2.96,227.21,227.13,10.26205625]
[1734455025992,2.96,227.21,227.2,2.2005]
[1734455026693,2.96,227.21,227.13,10.26205625]
[1734455028093,2.96,227.21,227.2,2.2005]
[1734455028295,0.72253,227.22,227.2,2.2005]
[1734455028496,2.96,227.21,227.2,2.2005]
[1734455029895,0.72253,227.22,227.21,2.2004]
[1734455030100,3.68253,227.22,227.21,2.2004]
[1734455030298,0.72253,227.22,227.21,2.2004]
[1734455030497,3.68253,227.22,227.21,2.2004]
[1734455031093,0.72253,227.22,227.21,2.2004]
[1734455032398,2.96,227.3,227.29,2.1996]
[1734455032602,2.96,227.3,227.23,10.26205625]
[1734455032898,2.96,227.3,227.27,2.1998]
[1734455033104,2.96,227.3,227.23,10.26205625]
[1734455033702,2.96,227.29,227.23,10.26205625]
[1734455035406,2.96,227.29,227.28,2.1998]
[1734455035806,2.96,227.29,227.21,15.58317592]
[1734455036706,2.96,227.3,227.21,15.58317592]
[1734455037405,4.4981,227.45,227.28,10.26205625]
[1734455037406,2.96,227.44,227.28,10.26205625]
[1734455037604,2.96,227.44,227.32,10.26205625]
[1734455038001,13.22205625,227.44,227.32,10.26205625]
[1734455038404,4.4981,227.45,227.32,10.26205625]
[1734455038405,2.96,227.43,227.32,10.26205625]
[1734455039202,2.1985,227.41,227.32,10.26205625]
[1734455039902,2.1988,227.38,227.33,2.1993]
[1734455040103,2.96,227.37,227.29,10.26205625]
[1734455040407,2.96,227.36,227.32,2.1994]
[1734455040801,2.96,227.36,227.29,10.26205625]
[1734455041199,2.96,227.36,227.34,2.1992]
[1734455041404,2.96,227.36,227.29,10.26205625]
[1734455042001,2.96,227.36,227.26,10.26205625]
[1734455042409,2.96,227.36,227.23,10.26205625]
[1734455042804,2.8903,227.35,227.23,10.26205625]
[1734455043407,2.1995,227.32,227.26,2.1999]
[1734455043604,2.1995,227.32,227.23,10.26205625]
[1734455043810,2.96,227.36,227.23,10.26205625]
[1734455044502,2.1993,227.33,227.23,10.26205625]
[1734455044710,2.96,227.36,227.23,10.26205625]
[1734455045812,2.9961,227.35,227.23,10.26205625]
[1734455046009,2.1993,227.34,227.28,2.1997]
[1734455046211,2.9961,227.35,227.23,10.26205625]
[1734455046707,5.1952,227.35,227.29,2.1996]
[1734455046910,2.94,227.34,227.26,10.26205625]
[1734455047912,5.1392,227.34,227.29,2.1997]
[1734455048113,2.94,227.34,227.26,10.26205625]
[1734455048313,2.94,227.34,227.3,2.1995]
[1734455048509,2.94,227.34,227.23,10.26205625]
[1734455048812,2.1994,227.32,227.27,2.1998]
[1734455049012,2.94,227.34,227.23,10.26205625]
[1734455050115,2.1996,227.31,227.27,2.1998]
[1734455050309,2.94,227.34,227.23,10.26205625]
[1734455050510,2.94,227.34,227.26,10.26205625]
[1734455050717,2.9961,227.35,227.26,10.26205625]
[1734455050912,2.94,227.34,227.26,10.26205625]
[1734455051109,5.1393,227.34,227.29,2.1996]
[1734455051513,5.1393,227.34,227.26,10.26205625]
[1734455051716,2.94,227.34,227.26,10.26205625]
[1734455052011,2.94,227.34,227.24,10.26205625]
[1734455052414,2.1994,227.32,227.28,2.1998]
[1734455052617,2.94,227.34,227.21,5.32111967]
[1734455053009,2.1994,227.32,227.27,2.1998]
[1734455053213,2.94,227.34,227.27,2.1998]
[1734455053614,2.1996,227.3,227.25,2.2]
[1734455053814,2.1996,227.3,227.23,10.26205625]
[1734455054618,2.1996,227.3,227.26,2.1999]
[1734455055116,2.1995,227.31,227.27,2.1998]
[1734455055308,1.5365,227.34,227.23,10.26205625]
[1734455055516,2.94,227.33,227.23,10.26205625]
[1734455055812,2.1994,227.33,227.29,2.1996]
[1734455056008,2.94,227.32,227.23,10.26205625]
[1734455056613,2.94,227.32,227.26,10.26205625]
[1734455057017,2.94,227.32,227.31,2.1995]
[1734455058118,2.94,227.35,227.34,2.1991]
[1734455058520,3.0771,227.38,227.34,2.1991]
[1734455058717,2.94,227.37,227.35,2.1991]
[1734455059724,2.94,227.37,227.26,10.26205625]
[1734455059921,2.94,227.37,227.35,2.1991]
[1734455060115,10.26205625,227.42,227.21,5.32111967]
[1734455060315,10.26205625,227.42,227.37,2.1989]
[1734455060618,10.26205625,227.42,227.24,4.4003]
[1734455060619,10.26205625,227.39,227.26,10.26205625]
[1734455060822,2.199,227.36,227.3,2.1995]
[1734455061015,2.94,227.35,227.26,10.26205625]
[1734455061421,10.26205625,227.39,227.26,10.26205625]
[1734455062019,10.26205625,227.39,227.29,2.1996]
[1734455062216,2.94,227.4,227.32,10.26205625]
[1734455062418,1.4787,227.43,227.32,10.26205625]
[1734455062938,1.4787,227.43,227.38,2.1987]
[1734455063539,6.583,227.44,227.39,2.1986]
[1734455063931,6.583,227.44,227.32,10.26205625]
[1734455064337,6.583,227.44,227.38,2.1988]
[1734455065440,4.3847,227.44,227.39,2.1987]
[1734455066136,6.5829,227.44,227.39,2.1987]
[1734455066336,6.5829,227.44,227.32,10.26205625]
[1734455066337,4.3847,227.44,227.32,10.26205625]
[1734455066843,11.60818134,227.44,227.32,10.26205625]
[1734455067038,7.22348134,227.43,227.32,10.26205625]
[1734455067240,18.61813477,227.44,227.32,10.26205625]
[1734455067431,7.22348134,227.43,227.32,10.26205625]
[1734455067631,14.23343477,227.43,227.42,2.1984]
[1734455067840,7.00995343,227.43,227.35,10.26205625]
[1734455068032,1.4447,227.44,227.35,10.26205625]
[1734455068239,1.4447,227.44,227.41,2.1985]
[1734455068745,1.4447,227.44,227.35,10.26205625]
[1734455069041,14.23499755,227.45,227.38,10.26205625]
[1734455069240,14.23499755,227.44,227.38,10.26205625]
[1734455069541,3.15366,227.47,227.44,2.1982]
[1734455069741,0.21366,227.47,227.44,2.1982]
[1734455070637,14.45589262,227.47,227.44,2.1982]
[1734455070839,14.45589262,227.47,227.45,2.1981]
[1734455071038,14.24240818,227.46,227.45,2.1981]
[1734455071440,0.21366,227.47,227.45,2.1981]
[1734455071640,0.21366,227.47,227.43,2.1983]
[1734455072235,7.44058018,227.47,227.44,2.1982]
[1734455072643,0.21366,227.47,227.38,10.26205625]
[1734455072939,10.26205625,227.46,227.32,10.26205625]
[1734455073151,14.24137891,227.45,227.32,10.26205625]
[1734455073534,16.43947891,227.45,227.4,2.1985]
[1734455073843,14.24137891,227.44,227.32,10.26205625]
[1734455074044,7.01445873,227.43,227.35,10.26205625]
[1734455074743,7.01445873,227.43,227.42,2.1984]
[1734455074940,2.1979,227.47,227.35,10.26205625]
[1734455075644,7.01445873,227.48,227.42,2.1984]
[1734455075645,2.198,227.46,227.42,2.1984]
[1734455075845,2.94,227.45,227.42,2.1984]
[1734455076040,9.47721302,227.45,227.42,2.1984]
[1734455076344,2.94,227.45,227.4,6.53721302]
[1734455076539,6.53721302,227.45,227.38,6.53721302]
[1734455077244,6.53721302,227.45,227.43,2.1983]
[1734455077639,6.53721302,227.45,227.38,6.53721302]
[1734455077640,6.53721302,227.45,227.44,2.1982]
[1734455077841,2.94,227.46,227.4,6.53721302]
[1734455078339,6.53721302,227.47,227.45,2.1981]
[1734455078543,2.1977,227.5,227.4,6.53721302]
[1734455078739,9.47721302,227.49,227.4,6.53721302]
[1734455078946,9.47721302,227.49,227.42,2.1983]
[1734455079245,9.47721302,227.49,227.4,6.53721302]
[1734455079646,9.47721302,227.49,227.46,2.198]
[1734455079841,2.94,227.49,227.46,2.198]
[1734455080044,2.94,227.49,227.42,6.53721302]
[1734455080045,6.53721302,227.49,227.42,6.53721302]
[1734455080245,6.53721302,227.49,227.47,2.1979]
[1734455083445,5.1377,227.5,227.47,2.1979]
[1734455083645,6.53721302,227.49,227.47,2.1979]
[1734455085251,6.53721302,227.49,227.48,2.1978]
[1734455085443,5.24792115,227.51,227.48,2.1978]
[1734455085751,6.53721302,227.5,227.48,2.1978]
[1734455085946,6.53721302,227.5,227.44,6.53721302]
[1734455086549,6.53721302,227.46,227.43,2.1983]
[1734455086748,2.94,227.45,227.43,2.1983]
[1734455087351,2.94,227.45,227.42,2.1984]
[1734455087550,8.73551302,227.44,227.32,5.16307312]
[1734455087749,6.53721302,227.4,227.33,6.53721302]
[1734455087952,2.92,227.39,227.33,6.53721302]
[1734455088152,2.92,227.39,227.34,2.1991]
[1734455088347,2.92,227.39,227.33,6.53721302]
[1734455088752,2.92,227.39,227.37,2.1989]
[1734455090157,9.93580227,227.39,227.37,2.1989]
[1734455090457,2.92,227.39,227.37,2.1989]
[1734455091255,9.93743431,227.39,227.37,2.1989]
[1734455091457,9.93743431,227.39,227.25,2.92]
[1734455091658,9.93878057,227.39,227.34,2.1991]
[1734455091957,17.17093518,227.39,227.34,2.1991]
[1734455092157,7.01878057,227.38,227.34,2.1991]
[1734455092353,12.13748057,227.39,227.34,2.1991]
[1734455092854,7.23333712,227.38,227.34,2.1991]
[1734455093055,7.01878057,227.38,227.34,2.1991]
[1734455093251,12.13748057,227.39,227.34,2.1991]
[1734455093452,7.23433846,227.38,227.34,2.1991]
[1734455093751,2.199,227.36,227.32,2.1993]
[1734455093953,14.25311903,227.37,227.32,2.1993]
[1734455094153,16.45201903,227.37,227.32,2.1993]
[1734455094359,1.5417,227.44,227.33,6.53721302]
[1734455094360,9.93878057,227.36,227.33,6.53721302]
[1734455094559,2.92,227.37,227.33,6.53721302]
[1734455094755,2.92,227.37,227.35,6.53721302]
[1734455094954,14.25851291,227.39,227.37,2.1989]
[1734455095260,2.92,227.38,227.37,2.1989]
[1734455095450,9.9426958,227.38,227.37,2.1989]
[1734455095655,2.92,227.38,227.37,2.1989]
[1734455095854,9.9426958,227.38,227.37,2.1989]
[1734455096053,17.18025629,227.38,227.37,2.1989]
[1734455096258,17.18025629,227.38,227.36,2.199]
[1734455096449,7.0226958,227.37,227.36,2.199]
[1734455096650,2.92,227.38,227.36,2.199]
[1734455098767,2.92,227.38,227.37,2.1989]
[1734455099152,2.92,227.39,227.35,6.53721302]
[1734455099857,2.92,227.39,227.38,2.1987]
[1734455100651,2.92,227.39,227.36,2.199]
[1734455101168,2.92,227.4,227.36,2.1989]
[1734455101463,2.92,227.4,227.27,5.41194829]
[1734455101657,2.92,227.4,227.35,6.53721302]
[1734455102059,5.1186,227.4,227.36,2.1989]
[1734455102757,2.92,227.4,227.36,2.1989]
[1734455102953,2.92,227.4,227.33,6.53721302]
[1734455103160,2.92,227.39,227.27,5.41194829]
[1734455103355,17.57107623,227.5,227.38,6.53721302]
[1734455103662,17.21767471,227.49,227.42,6.53721302]
[1734455103963,6.86177302,227.5,227.42,6.53721302]
[1734455104261,6.86177302,227.5,227.45,2.198]
[1734455104262,2.92,227.49,227.45,2.198]
[1734455104558,2.92,227.49,227.42,6.53721302]
[1734455104559,2.92,227.48,227.44,6.53721302]
[1734455104757,2.92,227.48,227.46,6.53721302]
[1734455104962,2.92,227.48,227.47,2.1979]
[1734455105459,2.92,227.49,227.47,2.1979]
[1734455105763,2.92,227.49,227.45,6.53721302]
[1734455106061,2.92,227.49,227.48,2.1978]
[1734455106264,2.92,227.49,227.45,6.53721302]
[1734455106466,2.92,227.49,227.33,4.3606]
[1734455106858,2.92,227.49,227.43,6.53721302]
[1734455107055,9.45721302,227.49,227.41,6.53721302]
[1734455107261,6.53721302,227.47,227.41,2.1984]
[1734455107465,6.53721302,227.47,227.39,6.53721302]
[1734455108271,2.92,227.49,227.39,6.53721302]
[1734455108567,6.53721302,227.45,227.33,4.3606]
[1734455108761,6.53721302,227.43,227.36,6.53721302]
[1734455108963,2.92,227.42,227.36,6.53721302]
[1734455109166,2.92,227.42,227.38,2.1987]
[1734455109665,2.92,227.42,227.36,6.53721302]
[1734455109866,2.92,227.42,227.39,2.1987]
[1734455111273,2.92,227.42,227.41,2.1985]
[1734455112267,0.32456,227.5,227.43,2.1983]
[1734455112572,9.45721302,227.49,227.4,6.53721302]
[1734455112961,11.65501302,227.49,227.44,2.1981]
[1734455113169,9.45721302,227.49,227.4,6.53721302]
[1734455113370,2.92,227.49,227.42,6.53721302]
[1734455114170,2.92,227.49,227.46,2.198]
[1734455114469,6.53721302,227.48,227.46,2.198]
[1734455114966,6.53721302,227.48,227.32,5.97413392]
[1734455115269,2.92,227.47,227.4,6.53721302]
[1734455115668,2.92,227.47,227.45,2.1981]
[1734455116170,2.92,227.47,227.44,2.1981]
[1734455116370,2.92,227.47,227.4,6.53721302]
[1734455116566,2.92,227.47,227.44,2.1981]
[1734455116767,2.92,227.47,227.42,6.53721302]
[1734455116967,2.92,227.47,227.44,6.53721302]
[1734455117469,2.92,227.47,227.42,6.53721302]
[1734455117663,0.32456,227.5,227.44,6.53721302]
[1734455117975,2.92,227.49,227.48,2.1978]
[1734455118269,2.92,227.49,227.46,6.53721302]
[1734455118470,2.92,227.49,227.48,2.1978]
[1734455119672,0.32456,227.5,227.49,2.1977]
[1734455119869,3.24456,227.5,227.49,2.1977]
[1734455120070,2.92,227.5,227.45,6.53721302]
[1734455120270,2.92,227.55,227.4,4.5175]
[1734455120568,8.73451302,227.54,227.48,6.53721302]
[1734455120769,4.4726,227.67,227.58,2.1969]
[1734455120972,6.53721302,227.62,227.54,6.53721302]
[1734455121368,6.53721302,227.62,227.41,7.317]
[1734455121569,6.53721302,227.62,227.53,6.53721302]
[1734455121964,6.53721302,227.62,227.57,2.1969]
[1734455122164,6.53721302,227.59,227.48,6.53721302]
[1734455122365,6.53721302,227.55,227.48,6.53721302]
[1734455122570,2.92,227.54,227.48,6.53721302]
[1734455122765,2.92,227.54,227.53,2.1974]
[1734455125776,2.92,227.54,227.51,2.1975]
[1734455125975,2.92,227.54,227.45,10.2046939]
[1734455126177,2.92,227.54,227.48,10.2046939]
[1734455126371,2.92,227.54,227.53,2.1974]
[1734455127171,2.92,227.54,227.45,10.2046939]
[1734455127679,2.92,227.54,227.53,2.1974]
[1734455128277,2.92,227.54,227.51,2.1975]
[1734455128974,2.92,227.54,227.45,10.2046939]
[1734455129371,2.92,227.54,227.48,10.2046939]
[1734455129576,2.92,227.54,227.53,2.1974]
[1734455130271,12.4013939,227.6,227.55,2.1971]
[1734455130476,2.92,227.59,227.48,10.2046939]
[1734455131673,5.1168,227.59,227.48,10.2046939]
[1734455131879,2.92,227.59,227.45,10.2046939]
[1734455132379,2.1971,227.57,227.53,2.1973]
[1734455132680,2.92,227.59,227.48,10.2046939]
[1734455132871,2.92,227.59,227.58,2.1969]
[1734455133877,2.92,227.59,227.48,10.2046939]
[1734455134180,5.1168,227.59,227.48,10.2046939]
[1734455134380,2.92,227.59,227.58,2.1969]
[1734455134872,2.92,227.59,227.48,10.2046939]
[1734455135479,0.48756,227.61,227.48,10.2046939]
[1734455135675,2.92,227.6,227.58,2.1969]
[1734455136384,2.92,227.6,227.51,10.2046939]
[1734455136577,2.92,227.6,227.59,2.1968]
[1734455136982,2.68426,227.61,227.56,2.197]
[1734455137181,2.92,227.6,227.48,10.2046939]
[1734455137383,13.1246939,227.6,227.47,5.17068653]
[1734455137680,10.2046939,227.57,227.36,4.398]
[1734455137885,4.4967,227.56,227.41,10.2046939]
[1734455138384,10.2046939,227.51,227.37,10.2046939]
[1734455138686,2.92,227.5,227.37,10.2046939]
[1734455139283,2.92,227.5,227.37,15.48735423]
[1734455139579,2.198,227.47,227.42,2.1983]
[1734455139783,2.92,227.5,227.37,15.48735423]
[1734455140081,2.92,227.5,227.46,2.198]
[1734455141384,5.1176,227.5,227.46,2.198]
[1734455141588,5.1176,227.5,227.4,10.2046939]
[1734455142089,5.1176,227.5,227.45,2.198]
[1734455142299,2.92,227.5,227.4,10.2046939]
[1734455142889,2.92,227.5,227.47,2.1979]
[1734455143292,2.92,227.5,227.37,5.28266033]
[1734455143293,2.1978,227.49,227.44,2.1982]
[1734455143493,2.92,227.5,227.37,15.48735423]
[1734455143793,10.2046939,227.42,227.29,5.99487029]
[1734455143991,7.3562,227.41,227.29,5.99487029]
[1734455144698,2.1987,227.4,227.35,2.1991]
[1734455145290,7.3562,227.41,227.29,5.99487029]
[1734455145596,2.92,227.4,227.34,10.2046939]
[1734455145797,2.92,227.39,227.34,10.2046939]
[1734455145998,14.6162939,227.48,227.34,10.2046939]
[1734455146198,2.92,227.47,227.34,10.2046939]
[1734455146592,5.118,227.47,227.34,10.2046939]
[1734455146794,2.198,227.47,227.37,10.2046939]
[1734455147095,2.9,227.46,227.37,10.2046939]
[1734455147590,2.1981,227.46,227.37,10.2046939]